bitfinex/quotes_ETHUSD_20220120
["timestamp","ask_amount","ask_price","bid_price","bid_amount"]
[1642704096429,3.10113685,3231.8,3231.7,3.72347]
[1642704098239,3.10113685,3231.8,3231.7,4.77047]
[1642704099587,3.10113685,3231.8,3231.7,1.82047]
[1642704099789,8.4086974,3231.8,3231.4,0.00113685]
[1642704099990,3.10113685,3231.8,3231.4,0.00113685]
[1642704100190,2.57276697,3231.7,3231.4,0.00113685]
[1642704100388,3.10113685,3231.8,3231.3,0.00170527]
[1642704100590,2.62679658,3231.7,3231.3,0.00170527]
[1642704100789,2.62679658,3231.7,3231.2,0.00227369]
[1642704100790,5.1781106,3231.7,3231.2,0.00227369]
[1642704100990,3.10113685,3231.8,3231.2,0.00227369]
[1642704101191,2.51962243,3231.7,3231.2,0.00227369]
[1642704101394,3.10113685,3231.8,3231.2,0.30227369]
[1642704101590,2.62675602,3231.7,3231.2,0.34047631]
[1642704101793,2.8703947,3231.6,3231.3,0.00170527]
[1642704101995,2.62675602,3231.5,3231.3,0.00170527]
[1642704102191,2.62675602,3231.5,3230.4,1.54734]
[1642704102192,2.62675602,3231.5,3230.9,0.00397896]
[1642704102390,2.62675602,3231.5,3230.5,1.55359266]
[1642704102590,2.62675602,3231.5,3230.6,0.00568423]
[1642704102836,7.3076947,3231.7,3230.6,0.00568423]
[1642704102837,2.62675602,3231.6,3230.6,0.00568423]
[1642704103038,2.8703947,3231.5,3230.6,0.00568423]
[1642704103238,2.62675602,3231.4,3230.6,0.00568423]
[1642704104041,2.56097943,3231.3,3230.6,0.00568423]
[1642704104238,2.62675602,3231.2,3230.6,0.00568423]
[1642704104637,9.4917,3231.7,3230.6,0.00568423]
[1642704104938,2.62702255,3231.6,3230.6,0.77938333]
[1642704105138,2.62702255,3231.6,3230.7,0.33633042]
[1642704105341,2.62702255,3231.6,3230.8,1.30763105]
[1642704105539,2.62702255,3231.6,3230.8,1.31217844]
[1642704105740,2.62702255,3231.6,3230.9,0.00397896]
[1642704108385,2.62702255,3231.6,3230.8,0.00454739]
[1642704108586,2.62702255,3231.6,3230.8,0.30454739]
[1642704108987,2.62702255,3231.6,3230.9,0.00397896]
[1642704109192,2.62702255,3231.6,3230.9,0.30397896]
[1642704109385,2.62702255,3231.6,3230.7,0.00511581]
[1642704109887,2.62702255,3231.6,3230.6,0.30568423]
[1642704110086,2.62702255,3231.6,3230.6,0.33726001]
[1642704110330,2.62702255,3231.6,3230.7,0.00511581]
[1642704110929,2.62702255,3231.6,3230.6,0.33843958]
[1642704111131,2.62702255,3231.6,3230.7,0.00511581]
[1642704111933,2.62702255,3231.6,3230.6,0.33798233]
[1642704112132,2.62702255,3231.6,3230.7,0.00511581]
[1642704112733,2.62702255,3231.6,3230.6,0.30568423]
[1642704112937,2.62702255,3231.6,3230.7,0.00511581]
[1642704114181,2.62702255,3231.6,3230.6,0.3369463]
[1642704114387,1.03150762,3231.5,3230.7,0.00511581]
[1642704114582,2.62618037,3231.4,3230.7,0.00511581]
[1642704114982,2.62618037,3231.4,3230.6,0.00568423]
[1642704114983,1.13885651,3231.3,3230.6,0.00568423]
[1642704115185,4.70621039,3231.5,3230.3,0.0073895]
[1642704115186,5.84482289,3231.5,3230.3,0.0073895]
[1642704115384,1.14507867,3231.4,3230.3,0.0073895]
[1642704115586,1.14693704,3231.4,3230.0,0.00909477]
[1642704115784,1.2348,3231.3,3230.0,0.00909477]
[1642704115985,1.2348,3231.3,3230.0,0.60909477]
[1642704116383,1.2348,3231.3,3230.1,0.00852635]
[1642704116584,1.2348,3231.3,3230.1,0.30852635]
[1642704116784,2.43859154,3231.3,3230.1,0.30852635]
[1642704116990,1.2348,3231.3,3230.2,0.00795793]
[1642704119736,1.2348,3231.3,3230.3,0.00429765]
[1642704119933,1.2348,3231.3,3230.2,0.00795793]
[1642704119934,0.15488,3231.2,3230.2,0.00795793]
[1642704120136,1.2348,3231.3,3230.4,0.00682108]
[1642704120438,1.2348,3231.3,3230.0,0.00909477]
[1642704121136,1.2348,3231.3,3230.0,0.30909477]
[1642704121579,1.2348,3231.3,3230.1,0.00852635]
[1642704121782,1.2348,3231.3,3230.1,0.30852635]
[1642704121983,1.2348,3231.3,3230.3,0.7738326]
[1642704122190,1.2348,3231.3,3230.4,2.96762461]
[1642704122386,1.2348,3231.3,3230.4,0.70405099]
[1642704122685,1.2348,3231.3,3230.5,0.00625266]
[1642704123887,1.2348,3231.3,3230.5,0.78000746]
[1642704124083,1.2348,3231.3,3230.6,0.63701681]
[1642704124283,1.2348,3231.3,3230.7,0.77372]
[1642704124484,1.2348,3231.3,3230.7,0.77883581]
[1642704124687,1.2348,3231.3,3230.8,0.00454739]
[1642704126235,1.2348,3231.3,3230.8,3.10454739]
[1642704126434,1.2348,3231.3,3230.8,3.1]
[1642704126633,1.2348,3231.3,3230.9,0.00397896]
[1642704134134,5.0639584,3231.3,3230.9,0.00397896]
[1642704134336,18.14,3231.2,3230.9,0.00397896]
[1642704134634,2.62756228,3231.1,3230.9,0.00397896]
[1642704137279,2.52243465,3231.1,3230.9,0.00397896]
[1642704138484,20.66243465,3231.1,3230.9,0.00397896]
[1642704138683,18.14,3231.1,3230.9,0.00397896]
[1642704140250,29.1243985,3231.0,3230.9,0.00397896]
[1642704140437,29.2792785,3231.0,3230.9,0.00397896]
[1642704142642,29.24827513,3231.0,3230.9,0.00397896]
[1642704149441,28.24827513,3231.0,3230.9,0.00397896]
[1642704149640,29.24827513,3231.0,3230.9,0.00397896]
[1642704150645,28.24827513,3231.0,3230.9,0.00397896]
[1642704151241,22.09827513,3231.0,3230.9,0.00397896]
[1642704151482,3.80339513,3231.0,3230.9,0.00397896]
[1642704151885,18.14,3231.2,3230.9,0.00397896]
[1642704152086,3.80339513,3231.1,3230.9,0.00397896]
[1642704152690,1.2348,3231.3,3230.9,0.00397896]
[1642704153689,1.2348,3231.3,3230.9,0.04376152]
[1642704153888,1.2348,3231.3,3230.9,0.00397896]
[1642704154491,1.2348,3231.3,3230.9,0.04263031]
[1642704157239,2.62717159,3231.2,3230.9,0.04263031]
[1642704157639,2.62717159,3231.2,3230.9,0.04182233]
[1642704158043,1.2348,3231.3,3230.9,0.04182233]
[1642704158245,1.2348,3231.3,3230.9,2.92813199]
[1642704158449,1.2348,3231.3,3230.9,0.04182233]
[1642704158640,11.8559,3231.7,3230.9,0.04182233]
[1642704158840,2.62704619,3231.6,3230.9,0.04182233]
[1642704159982,2.62704619,3231.6,3231.1,1.3736906]
[1642704160382,2.62704619,3231.6,3231.2,0.00227369]
[1642704164637,2.62704619,3232.0,3231.2,0.00227369]
[1642704164839,4.9603,3232.2,3231.2,0.00227369]
[1642704164840,2.62704619,3231.9,3231.2,0.00227369]
[1642704165039,2.62704619,3231.8,3231.2,0.00227369]
[1642704165238,2.62704619,3231.7,3231.2,0.00227369]
[1642704165439,2.62704619,3231.6,3231.2,0.00227369]
[1642704165637,2.62704619,3231.5,3231.2,0.00227369]
[1642704165839,2.62709091,3231.4,3231.2,0.00227369]
[1642704166038,2.62709091,3231.3,3231.2,0.00227369]
[1642704166245,9.18868893,3232.1,3231.2,0.00227369]
[1642704166485,2.62709091,3232.0,3231.2,0.00227369]
[1642704166784,0.00170527,3231.9,3230.9,0.00397896]
[1642704166985,2.75445227,3231.9,3230.9,0.00397896]
[1642704167186,2.62822776,3231.8,3230.9,0.00397896]
[1642704167988,2.62709091,3231.7,3230.9,0.00397896]
[1642704168189,2.62709091,3231.6,3230.9,0.00397896]
[1642704168389,2.62709091,3231.5,3230.9,0.00397896]
[1642704168591,2.62709091,3231.4,3230.9,0.00397896]
[1642704168893,2.62709091,3231.3,3230.9,0.00397896]
[1642704169093,0.00113685,3231.8,3230.9,0.00397896]
[1642704173143,0.00113685,3231.8,3231.0,0.7737003]
[1642704173345,0.00113685,3231.8,3231.0,0.80941143]
[1642704173540,0.00113685,3231.8,3231.1,0.30284212]
[1642704173740,2.6282645,3231.8,3231.1,0.30284212]
[1642704173987,2.62712765,3231.7,3231.2,0.00227369]
[1642704174194,2.62712765,3231.6,3231.2,0.00227369]
[1642704174388,2.62712765,3231.5,3231.2,0.00227369]
[1642704174587,2.62712765,3231.4,3231.2,0.00227369]
[1642704174787,2.62712765,3231.3,3231.2,0.00227369]
[1642704175487,0.00113685,3231.8,3231.2,0.00227369]
[1642704176290,10.37155818,3232.2,3231.2,0.00227369]
[1642704176490,10.37155818,3232.2,3231.2,0.00341054]
[1642704176696,0.00170527,3232.1,3231.2,0.00341054]
[1642704177092,0.00113685,3232.0,3231.2,0.00341054]
[1642704179442,0.00113685,3232.0,3231.3,0.7736311]
[1642704179647,0.00113685,3232.0,3231.3,1.0736311]
[1642704179943,0.00113685,3232.0,3231.4,0.3022737]
[1642704180145,0.00113685,3232.0,3231.4,0.34014503]
[1642704180345,0.00113685,3232.0,3231.5,0.00170527]
[1642704182396,0.00113685,3232.0,3231.4,0.0022737]
[1642704184999,0.00113685,3232.0,3231.3,0.30284212]
[1642704185243,0.00113685,3232.0,3231.4,0.0022737]
[1642704186644,1.56504037,3232.0,3231.4,0.0022737]
[1642704187050,0.00113685,3232.0,3231.4,0.0022737]
[1642704188650,0.00113685,3232.0,3231.3,0.30284212]
[1642704188849,0.00113685,3232.0,3231.4,3.1]
[1642704189093,0.00113685,3232.0,3231.4,3.4022737]
[1642704189294,0.00113685,3232.0,3231.5,0.00170527]
[1642704190797,1.56504037,3232.0,3231.5,0.00170527]
[1642704192866,1.56390352,3231.9,3231.5,0.00170527]
[1642704193065,1.56504037,3232.0,3231.5,0.00170527]
[1642704193266,1.56390352,3231.9,3231.5,0.00170527]
[1642704194267,1.56390352,3231.8,3231.5,0.00170527]
[1642704195668,2.34473471,3232.0,3231.5,0.00170527]
[1642704195669,1.56390352,3231.9,3231.5,0.00170527]
[1642704196886,2.62816004,3232.0,3231.5,0.00170527]
[1642704196887,1.56390352,3231.8,3231.5,0.00170527]
[1642704197687,2.62702319,3231.7,3231.5,0.00170527]
[1642704197891,2.62702319,3231.6,3231.5,0.00170527]
[1642704198392,1.56390352,3231.9,3231.5,0.00170527]
[1642704199696,1.56390352,3231.8,3231.5,0.00170527]
[1642704203356,4.18997092,3231.7,3231.5,0.00170527]
[1642704203654,2.62702319,3231.6,3231.5,0.00170527]
[1642704204112,1.56294773,3231.7,3231.5,0.00170527]
[1642704204706,2.62702319,3231.6,3231.5,0.00170527]
[1642704204912,11.50866623,3231.6,3231.5,0.00170527]
[1642704205112,6.15,3231.5,3231.4,1.769]
[1642704205313,18.14,3231.3,3229.6,1.2159]
[1642704205508,13.91452573,3231.5,3229.6,1.2159]
[1642704205509,20.50303084,3231.1,3229.6,4.7159]
[1642704205808,11.85084965,3231.0,3229.7,0.01023162]
[1642704206007,3.81692319,3230.9,3229.7,0.01023162]
[1642704206307,5.48558415,3230.8,3229.7,0.01023162]
[1642704206507,2.62702319,3230.7,3229.7,0.01023162]
[1642704206906,6.47437785,3230.7,3229.7,0.01023162]
[1642704207206,2.62702319,3230.6,3229.7,0.01023162]
[1642704207852,2.62702319,3230.5,3229.7,0.01023162]
[1642704208045,2.62702319,3230.4,3229.7,0.01023162]
[1642704208246,2.62702319,3230.3,3229.7,0.01023162]
[1642704208448,1.1899,3230.9,3229.7,0.01023162]
[1642704208647,2.6276444,3230.8,3229.7,0.01023162]
[1642704208848,2.6276444,3230.8,3229.7,2.97835563]
[1642704209049,2.6276444,3230.8,3229.7,0.78422312]
[1642704209249,2.6276444,3230.8,3229.8,0.3096632]
[1642704209452,2.6276444,3230.8,3229.8,0.6096632]
[1642704209749,2.6276444,3230.8,3229.9,0.00909478]
[1642704210749,2.6276444,3230.8,3229.9,2.97182017]
[1642704210952,2.6276444,3230.8,3230.0,0.00281777]
[1642704211150,2.6276444,3230.8,3230.0,0.01134412]
[1642704211350,2.6276444,3230.8,3230.1,0.00795793]
[1642704211887,2.6276444,3230.8,3230.1,0.78186473]
[1642704212088,2.6276444,3230.8,3230.1,1.38186473]
[1642704212289,2.6276444,3230.8,3230.2,0.00738951]
[1642704213893,2.6276444,3230.8,3230.2,2.86836373]
[1642704214094,7.47915466,3231.3,3230.2,3.97785998]
[1642704214294,2.62730734,3231.2,3230.3,0.00682108]
[1642704214494,2.62730734,3231.1,3230.3,0.00682108]
[1642704214698,2.62730734,3231.0,3230.3,0.00682108]
[1642704214998,2.62730734,3230.9,3230.6,1.41494969]
[1642704215269,8.68663181,3231.3,3230.6,1.41494969]
[1642704215270,1.159,3231.3,3230.6,1.41494969]
[1642704215488,2.62722453,3231.2,3230.7,0.00454739]
[1642704217771,2.62722453,3231.2,3230.7,2.94226654]
[1642704218276,2.62722453,3231.2,3230.8,0.00397897]
[1642704218872,2.62722453,3231.2,3230.7,0.00454739]
[1642704220993,2.62722453,3231.2,3230.8,0.03624988]
[1642704221396,2.62722453,3231.2,3230.9,0.00341054]
[1642704221994,2.62722453,3231.2,3230.8,0.00397897]
[1642704223847,2.57722453,3231.2,3230.8,0.00397897]
[1642704224049,1.159,3231.3,3230.8,0.00397897]
[1642704231244,2.56992404,3231.2,3230.8,0.00397897]
[1642704231445,3.89552513,3231.2,3230.8,0.00397897]
[1642704231644,2.46228778,3231.1,3230.8,0.00397897]
[1642704232349,4.05040513,3231.2,3230.8,0.00397897]
[1642704232744,6.48278767,3231.2,3230.8,0.00397897]
[1642704232945,4.05040513,3231.2,3230.8,0.00397897]
[1642704233553,3.89552513,3231.2,3230.8,0.00397897]
[1642704238943,1.159,3231.3,3230.8,0.00397897]
[1642704239361,1.159,3231.3,3230.8,0.01056922]
[1642704239743,1.159,3231.3,3230.9,0.00341054]
[1642704240643,1.159,3231.3,3230.8,0.00397897]
[1642704244004,2.6271947,3231.2,3230.8,0.00397897]
[1642704248654,2.62621147,3231.2,3230.8,0.00397897]
[1642704250599,2.62412945,3231.2,3230.8,0.00397897]
[1642704252846,2.62412945,3231.2,3230.7,2.95397897]
[1642704253048,2.62412945,3231.2,3230.7,3.55397897]
[1642704253248,0.00170527,3231.1,3230.7,3.55397897]
[1642704253650,0.00113685,3231.0,3230.7,3.55397897]
[1642704256890,0.00113685,3231.0,3230.7,3.47721097]
[1642704262049,0.00113685,3231.0,3230.7,0.523232]
[1642704262259,0.00113685,3231.0,3230.4,0.7738149]
[1642704262260,0.00113685,3231.0,3230.5,0.3]
[1642704262651,0.00113685,3231.0,3230.6,0.00113684]
[1642704264497,0.00113685,3231.0,3230.5,0.00170527]
[1642704264698,0.00113685,3231.0,3230.1,0.00397896]
[1642704265498,3.84666198,3231.2,3230.1,0.00397896]
[1642704265699,5.41680144,3231.2,3230.1,0.00397896]
[1642704266000,0.77398,3231.1,3230.1,0.00511581]
[1642704267965,18.14,3231.0,3230.1,0.00511581]
[1642704268170,19.71013946,3231.0,3230.1,0.00511581]
[1642704268369,0.01241486,3230.7,3230.1,0.00511581]
[1642704268765,0.01241486,3230.7,3229.5,0.00852635]
[1642704269180,18.15241486,3230.7,3229.5,0.00852635]
[1642704269768,18.15241486,3230.7,3229.3,0.0096632]
[1642704269967,0.77412,3230.6,3229.4,0.7740745]
[1642704270173,18.91412,3230.6,3229.4,0.7740745]
[1642704270370,18.91412,3230.6,3229.5,0.00852635]
[1642704270569,2.62788414,3230.5,3229.5,0.00852635]
[1642704270968,2.62788414,3230.5,3229.7,0.00283102]
[1642704271370,2.62788414,3230.5,3229.8,0.00682108]
[1642704271594,20.76788414,3230.5,3229.8,0.00682108]
[1642704271794,2.62788414,3230.4,3229.8,0.00682108]
[1642704272000,2.63025095,3230.3,3229.8,0.00682108]
[1642704272296,2.62788414,3230.2,3229.8,3.00682108]
[1642704272496,2.62788414,3230.2,3229.8,3.30682108]
[1642704272700,2.62788414,3230.2,3229.9,0.00625266]
[1642704273098,5.17431195,3230.2,3229.9,0.00625266]
[1642704273304,5.60535827,3230.1,3229.9,0.00625266]
[1642704273505,8.77788414,3230.0,3229.9,0.00625266]
[1642704273898,6.15,3229.9,3229.8,2.95625266]
[1642704274097,8.77788414,3229.9,3229.8,2.95625266]
[1642704274497,27.07276414,3229.9,3229.8,2.95625266]
[1642704274898,27.51976414,3229.9,3229.8,2.95625266]
[1642704275750,31.41264404,3229.9,3229.8,2.95625266]
[1642704275948,31.41264404,3229.9,3229.8,2.95907926]
[1642704277149,27.51976414,3229.9,3229.8,2.95907926]
[1642704280010,27.07276414,3229.9,3229.8,2.95907926]
[1642704280408,20.92276414,3229.9,3229.8,2.95907926]
[1642704280809,2.78276414,3229.9,3229.8,2.95907926]
[1642704282745,2.62788414,3229.9,3229.8,3.25907926]
[1642704283349,0.13819997,3230.2,3229.8,3.25907926]
[1642704283551,2.62809072,3230.1,3229.8,3.25907926]
[1642704283753,2.62922757,3230.1,3229.8,3.25907926]
[1642704283950,2.62922757,3230.1,3229.8,3.26013092]
[1642704285757,2.62922757,3230.1,3230.0,0.00281777]
[1642704285758,0.00113685,3230.1,3230.0,0.00281777]
[1642704285951,0.00113685,3230.1,3230.0,0.00386943]
[1642704286351,8.86805659,3230.1,3230.0,0.00386943]
[1642704286794,10.09379722,3230.1,3230.0,0.00386943]
[1642704286996,10.24867722,3230.1,3230.0,0.00386943]
[1642704287796,6.30601685,3230.1,3230.0,0.00386943]
[1642704291647,0.15601685,3230.1,3230.0,0.00386943]
[1642704292250,2.75601685,3230.1,3230.0,0.00386943]
[1642704295397,2.60113685,3230.1,3230.0,0.00386943]
[1642704296201,5.80601685,3230.1,3230.0,0.00386943]
[1642704296799,2.75601685,3230.1,3230.0,0.00386943]
[1642704297849,2.60113685,3230.1,3230.0,0.00386943]
[1642704298253,5.90113685,3230.1,3230.0,0.00386943]
[1642704299051,6.05601685,3230.1,3230.0,0.00386943]
[1642704299651,2.75601685,3230.1,3230.0,0.00386943]
[1642704300854,5.38425953,3230.1,3230.0,0.00386943]
[1642704301901,5.22937953,3230.1,3230.0,0.00386943]
[1642704302702,5.38425953,3230.1,3230.0,0.00386943]
[1642704303304,7.01967026,3230.1,3230.0,0.00386943]
[1642704303705,6.15788147,3229.9,3228.3,2.83847714]
[1642704303914,6.15788147,3229.9,3227.8,3.7823]
[1642704303915,0.77451,3229.5,3227.8,3.7823]
[1642704304110,0.77451,3229.5,3228.4,0.00852635]
[1642704304111,0.00659834,3229.3,3228.4,0.00852635]
[1642704304308,2.62824268,3229.2,3228.4,0.0095781]
[1642704304504,2.62824268,3229.1,3228.4,0.0095781]
[1642704304707,19.7766,3229.4,3228.5,0.00795793]
[1642704304708,20.92312268,3229.0,3228.5,0.00795793]
[1642704304910,2.62824268,3228.9,3228.5,0.00900968]
[1642704305106,3.80404268,3228.9,3228.5,0.00900968]
[1642704305352,3.80404268,3228.9,3228.6,0.0073895]
[1642704305557,2.62824268,3228.8,3228.6,0.00844125]
[1642704305755,1.1758,3228.9,3228.6,0.00844125]
[1642704305955,6.02900768,3228.8,3228.7,0.00682108]
[1642704306356,6.02900768,3228.8,3228.7,0.00787283]
[1642704306554,2.62900768,3228.8,3228.7,0.00787283]
[1642704307157,2.62900341,3228.8,3228.7,0.00787283]
[1642704307357,2.65,3228.8,3228.7,0.00787283]
[1642704308564,1.1758,3228.9,3228.7,0.00787283]
[1642704308998,1.1758,3228.9,3228.8,0.00625266]
[1642704309198,1.1758,3228.9,3228.8,0.00730441]
[1642704309503,3.93538148,3228.9,3228.8,0.00730441]
[1642704312743,3.93538148,3228.9,3228.8,3.00730441]
[1642704312949,2.75958148,3228.9,3228.8,3.30730441]
[1642704313749,2.75958148,3228.9,3228.8,0.30730441]
[1642704314150,2.75958148,3228.9,3228.8,0.00730441]
[1642704314352,2.75958148,3228.9,3228.0,2.05508192]
[1642704314353,3.15,3228.8,3228.0,2.05508192]
[1642704314552,2.62884852,3228.7,3228.0,2.05613371]
[1642704314761,2.62884852,3228.6,3228.1,0.00397896]
[1642704314954,0.06536648,3228.4,3228.1,0.00503077]
[1642704315157,0.13073296,3228.4,3228.1,0.00503077]
[1642704315351,0.13073296,3228.4,3228.2,0.00341054]
[1642704315555,0.13073296,3228.4,3228.2,0.00446235]
[1642704315953,0.13073296,3228.4,3228.3,0.00284211]
[1642704316153,0.13073296,3228.4,3228.3,0.00389392]
[1642704326505,4.03901187,3228.4,3228.3,0.00389392]
[1642704326904,7.53901187,3228.4,3228.3,0.00389392]
[1642704327105,4.03901187,3228.4,3228.3,0.00389392]
[1642704327957,29.67397635,3228.4,3228.3,0.00389392]
[1642704328157,28.32901187,3228.4,3227.3,7.39]
[1642704328457,18.14,3228.2,3227.4,0.00511581]
[1642704328859,0.13073296,3227.9,3227.4,0.00511581]
[1642704329459,0.13073296,3227.9,3227.7,1.47328445]
[1642704329858,4.43073296,3227.9,3227.8,0.00284212]
[1642704330460,4.43073296,3227.9,3227.3,0.00568424]
[1642704330662,1.46511867,3227.8,3227.3,0.00568424]
[1642704330862,4.43073296,3227.9,3227.4,1.13853298]
[1642704331063,4.43073296,3227.9,3227.4,1.73853298]
[1642704331261,4.43073296,3227.9,3227.5,0.00454739]
[1642704331904,4.43073296,3227.9,3227.3,0.00568424]
[1642704332203,4.43073296,3227.9,3227.3,1.15169031]
[1642704332503,22.57073296,3227.9,3227.3,1.75169031]
[1642704332807,22.57073296,3227.9,3227.3,0.60568424]
[1642704333006,4.43073296,3227.9,3227.3,0.30568424]
[1642704333404,4.43073296,3227.9,3227.3,0.00568424]
[1642704333804,4.3,3227.9,3227.3,0.00568424]
[1642704334205,0.13073296,3227.6,3227.3,0.00568424]
[1642704334506,0.13073296,3227.6,3227.3,1.4551191]
[1642704334905,0.13073296,3227.6,3227.3,2.0551191]
[1642704337658,6.30488,3227.4,3227.3,0.00568424]
[1642704338158,8.93479167,3227.4,3227.3,0.00568424]
[1642704338354,27.07479167,3227.4,3227.3,0.00568424]
[1642704338653,6.15,3227.3,3227.0,0.03]
[1642704338995,6.15,3227.3,3227.1,0.00113684]
[1642704339198,18.14,3227.2,3227.1,0.00113684]
[1642704339400,18.14,3227.0,3226.0,2.8256177]
[1642704339600,18.14,3227.0,3225.4,0.054]
[1642704339798,9.3626,3226.9,3226.1,0.00568424]
[1642704340100,18.14,3226.8,3226.1,0.00568424]
[1642704340502,18.14,3226.8,3226.6,1.47228672]
[1642704340900,18.14,3226.8,3226.7,0.0022737]
[1642704341301,18.14,3226.8,3225.8,1.15687115]
[1642704341302,18.14,3226.8,3225.9,0.00682109]
[1642704341901,0.15488,3226.9,3225.9,0.00682109]
[1642704342103,0.15488,3226.9,3226.7,1.52803417]
[1642704342305,0.15488,3227.1,3226.7,1.52803417]
[1642704342502,18.29488,3227.1,3226.8,0.00170527]
[1642704342951,18.29488,3227.1,3225.9,0.00682109]
[1642704343755,18.29488,3227.1,3226.3,1.39989773]
[1642704344153,18.29488,3227.1,3226.4,0.00397897]
[1642704344757,0.13073296,3226.8,3226.4,0.00397897]
[1642704346155,0.13073296,3226.8,3226.4,1.00397897]
[1642704346355,0.13073296,3226.8,3226.4,0.00397897]
[1642704346600,0.13073296,3226.8,3226.6,0.02431504]
[1642704346799,0.13073296,3226.8,3226.5,0.00965831]
[1642704346999,0.13073296,3226.8,3226.7,0.0022737]
[1642704347201,0.13073296,3226.8,3226.6,0.00284212]
[1642704347404,0.13073296,3226.8,3226.4,1.0]
[1642704347405,0.13073296,3226.8,3226.5,0.00341055]
[1642704347805,0.13073296,3226.8,3226.6,0.00557246]
[1642704348002,0.13073296,3226.8,3226.5,3.68570238]
[1642704348003,3.296e-05,3226.8,3226.5,3.68570238]
[1642704348204,3.296e-05,3226.8,3226.7,6.1522737]
[1642704348507,3.296e-05,3226.8,3226.7,7.1992737]
[1642704348701,3.296e-05,3226.8,3226.7,8.1992737]
[1642704349106,3.296e-05,3226.8,3226.7,8.9739637]
[1642704349903,2.74366439,3228.0,3227.7,1.26825119]
[1642704350105,2.62258066,3228.2,3227.7,1.86825119]
[1642704350351,0.00454738,3227.9,3227.7,1.86825119]
[1642704350561,0.00454738,3227.9,3227.7,1.26825119]
[1642704350757,2.62258066,3228.2,3227.7,1.26825119]
[1642704350758,0.00397896,3227.8,3227.7,1.26825119]
[1642704351160,0.00568423,3227.8,3227.7,1.26825119]
[1642704353269,0.00568423,3227.8,3226.8,2.248]
[1642704353464,0.00568423,3227.8,3226.8,1.0]
[1642704353666,0.00341054,3227.7,3226.9,0.00113685]
[1642704354003,4.24917948,3228.3,3226.9,0.00113685]
[1642704354004,0.00284211,3227.6,3226.9,0.00113685]
[1642704354400,0.00227369,3227.5,3226.9,0.00113685]
[1642704354600,0.00227369,3227.5,3227.0,1.43410409]
[1642704354801,0.00170527,3227.4,3227.0,1.43410409]
[1642704355002,0.00170527,3227.4,3227.0,2.43410409]
[1642704355202,0.00113684,3227.3,3227.0,2.43410409]
[1642704355503,0.00511581,3228.0,3227.0,2.43410409]
[1642704355701,0.00160927,3227.5,3227.0,2.43410409]
[1642704356104,0.00170527,3227.4,3227.0,2.43410409]
[1642704356501,0.00113684,3227.3,3227.0,2.43410409]
[1642704356704,0.00113684,3227.3,3227.0,3.20871409]
[1642704357002,0.00170527,3227.4,3227.1,0.447]
[1642704357402,0.00113684,3227.3,3227.1,0.447]
[1642704357853,0.00160927,3227.5,3227.1,0.447]
[1642704357854,0.00170527,3227.4,3227.1,0.447]
[1642704358254,0.00113684,3227.3,3227.1,0.447]
[1642704358655,0.00170527,3227.4,3227.1,0.447]
[1642704359056,0.00113684,3227.3,3227.1,0.447]
[1642704359458,0.00170527,3227.4,3227.1,0.447]
[1642704359756,0.00113684,3227.3,3227.1,0.447]
[1642704360156,0.00170527,3227.4,3227.1,0.447]
[1642704360558,0.00113684,3227.3,3227.1,0.447]
[1642704360859,0.00170527,3227.4,3227.1,0.447]
[1642704361261,0.00113684,3227.3,3227.1,0.447]
[1642704361713,0.00170527,3227.4,3227.1,0.447]
[1642704362117,0.00113684,3227.3,3227.1,0.447]
[1642704362515,0.00160927,3227.5,3227.1,0.447]
[1642704362516,0.00170527,3227.4,3227.1,0.447]
[1642704362916,0.00113684,3227.3,3227.1,0.447]
[1642704363316,0.00170527,3227.4,3227.1,0.447]
[1642704363718,0.00113684,3227.3,3227.1,0.447]
[1642704364122,0.00170527,3227.4,3227.1,0.447]
[1642704364520,0.00113684,3227.3,3227.1,0.447]
[1642704364919,0.00170527,3227.4,3227.1,0.447]
[1642704365347,0.00113684,3227.3,3227.1,0.447]
[1642704365753,0.00170527,3227.4,3227.1,0.447]
[1642704366154,0.00113684,3227.3,3227.1,0.447]
[1642704366553,0.00170527,3227.4,3227.1,0.447]
[1642704366956,0.00113684,3227.3,3227.1,0.447]
[1642704367354,0.00170527,3227.4,3227.2,0.0093272]
[1642704367559,0.00160927,3227.5,3227.4,6.15]
[1642704367755,0.00160927,3227.5,3227.4,6.597]
[1642704367955,0.00160927,3227.5,3227.4,7.597]
[1642704368157,2.8256177,3228.7,3227.7,0.77434]
[1642704368358,12.6056409,3229.3,3228.3,1.08843899]
[1642704368359,3.9433409,3229.3,3228.3,1.08843899]
[1642704368565,6.06352289,3229.6,3228.3,1.08843899]
[1642704368566,0.00682108,3228.6,3228.4,2.8256177]
[1642704368756,0.00682108,3228.6,3228.3,1.53543899]
[1642704369007,11.95102237,3229.9,3228.7,0.7742]
[1642704369207,2.62838424,3229.8,3228.9,1.4504063]
[1642704369409,0.01136847,3229.4,3228.9,1.4504063]
[1642704369605,2.62838424,3229.3,3228.9,2.48426549]
[1642704369804,2.63918428,3229.3,3228.9,1.4504063]
[1642704370008,0.01023162,3229.2,3229.1,3.77412]
[1642704370209,0.01023162,3229.2,3229.1,1.22112]
[1642704370513,0.01023162,3229.2,3229.1,1.0]
[1642704370710,0.01023162,3229.2,3228.5,1.0]
[1642704370909,0.01023162,3229.2,3228.3,0.447]
[1642704370910,2.62837634,3229.1,3228.3,0.447]
[1642704371108,2.63803953,3229.1,3228.3,0.447]
[1642704371310,2.63747111,3229.0,3228.3,1.79153124]
[1642704371610,5.26549108,3228.9,3228.3,1.34453124]
[1642704371810,0.00852635,3228.9,3228.3,1.34453124]
[1642704372015,0.00795792,3228.8,3228.3,1.34453124]
[1642704372410,0.0073895,3228.7,3228.3,1.34453124]
[1642704372852,0.00682108,3228.6,3228.3,1.34453124]
[1642704373253,0.00625265,3228.5,3228.3,1.34453124]
[1642704373654,0.78725974,3229.4,3228.3,1.34453124]
[1642704373655,0.00568423,3228.4,3228.3,1.34453124]
[1642704373853,0.00568423,3228.4,3228.1,1.0]
[1642704374054,0.00568423,3228.4,3228.0,1.84858]
[1642704374055,0.00568423,3228.4,3228.0,1.54858]
[1642704374259,0.00511581,3228.3,3227.7,1.0]
[1642704374455,0.00511581,3228.3,3227.9,1.0]
[1642704374662,0.00454738,3228.2,3227.5,1.0]
[1642704374956,0.00397896,3228.1,3227.5,1.0]
[1642704375154,0.00397896,3228.1,3227.8,0.8913607]
[1642704375355,0.00341054,3228.0,3227.8,0.8913607]
[1642704375754,0.00284211,3227.9,3227.8,1.1913607]
[1642704376356,0.00284211,3227.9,3227.8,6.3913607]
[1642704376603,0.00284211,3227.9,3227.8,7.3913607]
[1642704376805,0.00284211,3227.9,3227.8,8.1657907]
[1642704377209,0.00284211,3227.9,3227.8,7.27443]
[1642704377605,0.00284211,3227.9,3227.8,6.5]
[1642704378005,0.00284211,3227.9,3227.8,1.3]
[1642704378406,0.00284211,3227.9,3227.8,2.55]